Cogmind - Beta 13 @@@ ROGUE MODE // 2024.04.06 @ 22:33:37 Player: Florist Result: Destroyed by as-34118 with Assembled Blade Performance ------------- Evolutions (0) 0 Regions Visited (2) 400 Robots Destroyed (9) 45 Value Destroyed (157) 157 Prototype IDs (0) 0 Alien Tech Used (0) 0 Bonus (0) 0 TOTAL SCORE: 602 Bonus ------- None Cogmind --------- Core Integrity 0/250 Matter 284/300 Energy 113/125 System Corruption 0% Temperature Cool (0) Movement Hovering (66) Location -10/Mines Parts ------- > --- POWER (1) -------- Light Ion Engine > --- PROPULSION (2) --- Hover Unit Combat Airjet > --- UTILITY (2) ------ Small Storage Unit Improved Light Armor Plating > --- WEAPON (2) ------- Small Laser Light Assault Rifle > --- INVENTORY (8) ---- Ion Engine Hover Unit High-capacity Storage Unit Faulty Experimental Sensor Array Signal Interpreter Mining Laser Peak State ------------ > --- POWER ------------ Light Ion Engine > --- PROPULSION ------- Hover Unit Combat Airjet > --- UTILITY ---------- Small Storage Unit Improved Terrain Scanner > --- WEAPON ----------- Light Assault Rifle Light Assault Rifle > --- INVENTORY -------- Ion Engine Hover Unit High-capacity Storage Unit Experimental Sensor Array Signal Interpreter Improved Light Armor Plating Small Laser Mining Laser [Rating: 14] Favorites ----------- Power Light Ion Engine Engine Light Ion Engine Propulsion Light Treads Treads Light Treads Hover Unit Combat Airjet Utility Small Storage Unit Device Seismic Detector Storage Small Storage Unit Protection Improved Light Armor Plating Weapon Small Laser Energy Gun Small Laser Ballistic Gun Light Assault Rifle Build | -11 -10 -10 ------- Run | Yrd Mat Min Slots Evolved . | . . . Power . | . . . Propulsion . | . . . Utility . | . . . Weapon . | . . . Parts Attached 14 | 7 5 2 Power 1 | . 1 . Engine 1 | . 1 . Core . | . . . Reactor . | . . . Propulsion 4 | 2 2 . Treads 2 | 2 . . Leg . | . . . Wheel . | . . . Hover 2 | . 2 . Flight . | . . . Utility 4 | 2 1 1 Device 2 | 1 1 . Storage 1 | 1 . . Processor . | . . . Hackware . | . . . Protection 1 | . . 1 Artifact . | . . . Weapon 5 | 3 1 1 Energy Gun 3 | 2 . 1 Energy Cannon . | . . . Ballistic Gun 2 | 1 1 . Ballistic Cannon . | . . . Launcher . | . . . Special Weapon . | . . . Impact Weapon . | . . . Slashing Weapon . | . . . Piercing Weapon . | . . . Special Melee Weapon . | . . . Unidentified Prototypes . | . . . Parts Lost 2 | 1 . 1 Power . | . . . Propulsion . | . . . Utility . | . . . Weapon 2 | 1 . 1 Highest Loss Streak 1 | 1 . 1 To Critical Strikes . | . . . Average Slot Usage (%) 85 | . 69 100 Engine 7 | . . 14 Treads 3 | . 7 . Hover 19 | . 10 28 Device 10 | . 9 11 Storage 14 | . 14 14 Protection 1 | . . 2 Energy Gun 4 | . 7 . Ballistic Gun 23 | . 20 27 Naked Turns . | . . . Heaviest Build 13 | 9 11 13 Greatest Support 40 | 40 40 18 Greatest Overweight (x) . | . . . Average Overweight (x) . | . . . Largest Inventory Capacity 8 | 8 8 8 Average Capacity 7 | 7 8 8 Most Carried 8 | 7 8 8 Average Carried 6 | 6 6 7 Final Capacity 8 | 8 8 8 Final Carried 7 | 7 6 6 Class Distribution -------------------- 95% | Mutant 4% | Scavenger-Mutant Dominant Class ---------------- Mutant | -10/Materials Scavenger-Mutant | -10/Mines Resources | -11 -10 -10 ----------- Run | Yrd Mat Min Matter Collected 380 | 271 85 24 Remotely . | . . . Salvage Created 290 | 54 216 20 Parts 18 | . 18 . Haulers Intercepted . | . . . Recyclers Shooed 1 | . 1 . Parts Field Recycled . | . . . Retrieved Matter . | . . . Parts Self-Destructed . | . . . Prevented . | . . . Kills | -11 -10 -10 ------- Run | Yrd Mat Min Combat Hostiles Destroyed 14 | 5 8 1 Guns 14 | 5 8 1 Classes Destroyed 4 | 1 3 . Watcher 1 | . 1 . Swarmer 6 | . 6 . Grunt 2 | . 2 . Assembled 6 | 5 . 1 Best Kill Streak 6 | 2 6 1 Combat Bots Only 5 | 2 5 1 Max Kills in Single Turn 1 | 1 1 1 Gunslinging . | . . . Exploded . | . . . Melee . | . . . Uniques/NPCs Destroyed . | . . . Combat | -11 -10 -10 -------- Run | Yrd Mat Min Hostile Shots Fired 94 | 13 74 7 Missed 38 | 4 32 2 Damage Taken 784 | 233 375 176 Core 256 | 33 162 61 Absorbed by Shields . | . . . Core Remaining (%) 86 | 86 . . Volleys Fired 50 | 11 36 3 Largest 2 | 2 2 2 Hottest 80 | 80 60 40 Shots Fired 96 | 19 72 5 Gun 96 | 19 72 5 Cannon . | . . . Launcher . | . . . Special . | . . . Kinetic 61 | 1 55 5 Thermal 26 | 9 17 . Explosive . | . . . Electromagnetic 9 | 9 . . Robot Hit Streak 8 | 6 5 8 Robot Miss Streak 5 | 2 5 . Penetration Max . | . . . Secondary Targets 4 | . 4 . Max Gunslinging Chain 1 | . 1 . Shots Hit Robots 55 | 12 38 5 Core Hits 29 | 9 17 3 Critical Kills . | . . . Critical Parts Destroyed . | . . . Critical Strikes . | . . . Melee Attacks . | . . . Impact . | . . . Slashing . | . . . Piercing . | . . . Sneak Attacks . | . . . Combat Hostiles . | . . . Follow-up Attacks . | . . . Damage Inflicted 534 | 132 361 41 Guns 534 | 132 361 41 Cannons . | . . . Explosions . | . . . Melee . | . . . Ramming . | . . . Kinetic 305 | . 264 41 Thermal 162 | 65 97 . Explosive . | . . . Electromagnetic 67 | 67 . . Impact . | . . . Slashing . | . . . Piercing . | . . . Highest Corruption . | . . . Average Corruption . | . . . Corruption Purged . | . . . Corruption Blocked . | . . . Overload Shots . | . . . Overflow Damage . | . . . Projectiles . | . . . Explosions . | . . . Melee . | . . . Knockbacks . | . . . Impact . | . . . Kinetic . | . . . Secondary . | . . . Self-Inflicted Damage . | . . . Shots . | . . . Rammed . | . . . Targets Rammed . | . . . Kicked . | . . . Crushed . | . . . Highest Temperature 32 | 12 32 5 Average Temperature 9 | 6 12 3 Received Heat Transfer 48 | . 48 . Siege Activations . | . . . Robots Corrupted . | . . . Combat Hostiles . | . . . Parts Fried . | . . . Impact Corruptions . | . . . Robots Melted . | . . . Combat Hostiles . | . . . Parts Melted . | . . . Heat Transferred 375 | 150 225 . Parts Sabotaged . | . . . Parts Stolen . | . . . Parts Stripped . | . . . Power Chain Reactions . | . . . Alert | -11 -10 -10 ------- Run | Yrd Mat Min Peak Influence 212 | . 212 82 Initial 82 | . . 82 Average 5 | . 83 58 Maximum Alert Level 1 | . 1 . Low Security (%) 99 | 100 78 100 Level 1 . | . 21 . Level 2 . | . . . Level 3 . | . . . Level 4 . | . . . Level 5 . | . . . High Security . | . . . Max Security . | . . . Squads Dispatched . | . . . Investigation . | . . . Extermination . | . . . Reinforcement . | . . . Assault . | . . . Garrison . | . . . Intercept . | . . . Searches Triggered . | . . . Construction Impeded . | . . . Haulers Reinforced . | . . . Active Scanning Responses . | . . . Cargo Convoy Interrupts . | . . . Stealth | -11 -10 -10 --------- Run | Yrd Mat Min Distress Signals 1 | . 1 . Communications Jammed . | . . . Distress Signals . | . . . Times Spotted 27 | 6 12 9 Peak Tracking Total 7 | 2 7 3 Tactical Retreats 3 | 1 . 2 Traps | -11 -10 -10 ------- Run | Yrd Mat Min Traps Triggered . | . . . Indirectly . | . . . Trap Hack Attempts . | . . . Triggered . | . . . Disarmed . | . . . Reprogrammed . | . . . Reused . | . . . Traps Extracted . | . . . Installed . | . . . Triggered . | . . . Machines | -11 -10 -10 ---------- Run | Yrd Mat Min Machines Disabled . | . . . Max in Single Turn . | . . . Machines Repaired . | . . . Machines Dismantled . | . . . Machines Sabotaged . | . . . Overloaded Fab Kills . | . . . Hacking | -11 -10 -10 --------- Run | Yrd Mat Min Machines Accessed 1 | . 1 . Terminals 1 | . 1 . Fabricators . | . . . Repair Stations . | . . . Recycling Units . | . . . Scanalyzers . | . . . Garrison Access . | . . . Total Hacks 2 | . 2 . Successful 1 | . 1 . Failed 1 | . 1 . Catastrophic . | . . . Database Lockouts . | . . . Manual 2 | . 2 . Terminals 2 | . 2 . Fabricators . | . . . Repair Stations . | . . . Recycling Units . | . . . Scanalyzers . | . . . Garrison Access . | . . . Terminal Hacks . | . . . Fabricator Hacks . | . . . Repair Station Hacks . | . . . Recycling Unit Hacks . | . . . Scanalyzer . | . . . Garrison Access Hacks . | . . . Unauthorized Hacks 1 | . 1 . Terminals 1 | . 1 . Botnet 1 | . 1 . Fabricators . | . . . Repair Stations . | . . . Recycling Units . | . . . Scanalyzers . | . . . Garrison Access . | . . . Data Cores Recovered . | . . . Used . | . . . Hacking Detections 1 | . 1 . Full Trace Events . | . . . Feedback Events . | . . . Feedback Blocked . | . . . Robot Schematics Acquired . | . . . Robots Built . | . . . Authchips . | . . . Time . | . . . Total Robot Build Rating . | . . . Part Schematics Acquired . | . . . Parts Built . | . . . Authchips . | . . . Time . | . . . Total Part Build Rating . | . . . Parts Repaired . | . . . Time . | . . . Parts Recycled . | . . . Recycled Matter . | . . . Retrieved Matter . | . . . Retrieved Components . | . . . Parts Scanalyzed . | . . . Part Schematics Acquired . | . . . Parts Damaged . | . . . Bothacking | -11 -10 -10 ------------ Run | Yrd Mat Min Used RIF Installer . | . . . Robots Hacked . | . . . Non-combat . | . . . Combat . | . . . Robot Hacks Applied . | . . . Relay Couplers Released . | . . . Fabnet Peak Effective % . | . . . Robots Rewired . | . . . Allies Hacked . | . . . Hacks Repelled . | . . . Allies | -11 -10 -10 -------- Run | Yrd Mat Min Total Allies 3 | . . 3 Largest Group 3 | . . 3 Highest-Rated Group 40 | . . 40 Highest-Rated Ally 16 | . . 16 Total Orders . | . . . Ally Attacks 12 | . . 12 Total Damage 112 | . . 112 Kills 2 | . . 2 Allies Corrupted . | . . . Allies Melted . | . . . Intel | -11 -10 -10 ------- Run | Yrd Mat Min Robot Analysis Total . | . . . Derelict Logs Recovered 1 | . . 1 Drone Launches . | . . . Drone Recoveries . | . . . Exploration | -11 -10 -10 ------------- Run | Yrd Mat Min Turns Passed 5659 | 5186 227 246 Spaces Moved 3375 | 2995 113 267 Core 12 | 12 . . Treads 3016 | 2983 33 . Legs . | . . . Wheels . | . . . Hover 347 | . 80 267 Flight . | . . . Fastest Speed 50 | 50 66 66 Average Speed 150 | 159 103 66 Slowest Speed 160 | 160 160 66 Overloaded Moves . | . . . Propulsion Burnouts . | . . . Robots Hopped . | . . . Cave-ins Triggered . | . . . Exploration Rate (%) 75 | 135 31 61 Regions Visited 2 Branch Regions 1 Pre-discovered Areas 1 | . . 1 Known Exits Taken . | . . . Unknown Exits Taken 2 | 1 1 . Scrap Searched 1 | . . 1 Spaces Dug . | . . . Terrain Destroyed . | . . . Melee . | . . . Projectile . | . . . AOE . | . . . Terrain Rammed . | . . . Walls Destroyed . | . . . Machines Disabled . | . . . Actions | -11 -10 -10 --------- Run | Yrd Mat Min Total 3881 | 3384 164 333 Wait 416 | 358 . 58 Move 3373 | 2994 112 267 Hop . | . . . Pick Up 21 | 14 5 2 Fast Attach . | . . . Attach 12 | 7 3 2 Detach 1 | . 1 . Swap 2 | . 2 . Drop 6 | . 5 1 Fire 50 | 11 36 3 Melee . | . . . Ram . | . . . Kick . | . . . Crush . | . . . Escape Stasis . | . . . Rewire . | . . . Trap . | . . . Miscellaneous . | . . . Route ------- -11/Scrapyard -10/Materials -10/Mines (discovered 1 exit: [*Mat]) History --------- Turn | Location | Event 10 | -11/Scrapyard | Discovered new exit (range 16) 1903 | -11/Scrapyard | Assembled infested the area 5187 | -11/Scrapyard | Entered Materials 5188 | -10/Materials | Build established: Mutant 5252 | -10/Materials | Discovered new exit (range 13) 5342 | -10/Materials | Core integrity fell below 50% 5414 | -10/Materials | Entered Mines 5417 | -10/Mines | Assisted by bots powering up and referring to "LRC-V3" 5432 | -10/Mines | Discovered new exit (range 14) 5466 | -10/Mines | Found a damaged Exp. Sensor Array with a note attached 5468 | -10/Mines | Found Prototype Device 5510 | -10/Mines | Assembled infested the area 5539 | -10/Mines | Core integrity fell below 20% 5571 | -10/Mines | Lost 3 allies 5660 | -10/Mines | Destroyed by as-34118 with Assembled Blade Last Messages --------------- World map updated: -9/Materials. U-05 Engineer suffers critical hit (Burn). U-05 Engineer heat damages Structural Scanner. as-56528 destroyed. as-20187 destroyed. as-99765 destroyed. Trooper 1b heat short circuits Lgt. Nuclear Core. Acquired 4 matter. C-30 ARC bursts open, deploying its payload. D-53 Grenadier unfolds itself. Mercenary 1a destroyed. R-06 Scavenger collects Aluminum Leg. Trooper 1a destroyed. R-06 Scavenger destroyed. Trooper 1b destroyed. K-01 Serf collects debris. T-07 Excavator is excavating. K-01 Serf collects debris. Dropped Imp. Terrain Scanner. Lgt. Assault Rifle destroyed. Map ----- +----------------------------------------------------+ | | | | | | | | | | | | | | | | | | | ?????????????????????????????????????????????????? | | ?????????????????????????????????????????????????? | | ?????????????????????????????#?????????#########?? | | ??????????????????????????????????????## #?? | | ???????????????????????????#####???????# #?? | | ??????????????????????????## ##??????# #?? | | ??????????????????????????# ######## #?? | | ??????????????????????????# #?? | | ???????????????#??????????#! #### """ #?? | | ??????????????????????????## #??# """ #?? | | ?????????????????#?##??????# #??# """ #?? | | ???????????????????? ###??### #??#########?? | | ????????????????????# #????# ##????????????? | | ??????????????##????# #????# ####?????????????? | | ????????????????????# ###### ##?????#????#?????? | | ????????????????????# a #????????????#????? | | ????????????????#???## a@ #?????????????????? | | ?????????????????????# ########?????????????????? | | ??????????????????##?# ###??????????#???#???????? | | ?????????????????## # ##?????####????????????? | | ????????????????## #?????# ##???????#???? | | ????????????????# ###??## ##??????????? | | ????????????????# ##### ##?????????? | | ????????????????# ## #?????????? | | ????????????????# = #?????????? | | ???????????????# !% #??????????? | | ???????????????# ##??????????? | | ????????????? #####???????????? | | ????????????? # ## ##?????##????????? | | ???????????? ########?## #??#?????????????? | | ??????????? ????????#??# ##????????????????? | | ?????????????#?????????# #????#?????#??????? | | ???????????????????????## #??????????#####??? | | ????????????????????????#### #?????#????# #??? | | ???????????????????????????## #??##??????# #??? | | ????????????????????????????# #???#??????# #??? | | ??????????????#?????????????# ##????????## ##?? | | ??????????????#????????????## ########## ##? | | ???????????????????######?## ## #? | | ????????????????#### ### ## ## #? | | ???????????????## """ ### ### #? | +----------------------------------------------------+ Best States ------------- Heat Dissipation 25 Energy Generation 10 Energy Capacity 125 Matter Stores 300 Matter Capacity 300 Sight Range 16 Terrain Scan Range 16 Terrain Scan Density 10 Armor Coverage 150 Evasion (%) 51 Recoil Reduction 2 Item Schematics ----------------- None Robot Schematics ------------------ None Fabricated ------------ Nothing Alien Tech Used ----------------- None Achievements -------------- Curiosity Killed The Cat Challenges ------------ None Game ------ Seed StealthImprinterActivator Manual? 0 Play Time 00:16:25 Cumulative 32.3 hours Start 2024.04.06 @ 22:19:18 End 2024.04.06 @ 22:33:37 Sessions 1 Manual Loads 0 Difficulty Rogue Special Mode None Game No. 46 Rogue 46 Adventurer 0 Explorer 0 Win Type - Total 0 Types 0/0/0/0/0/0/0/0/0 Lore% 18 Gallery% 35 Achievement% 30 Wizard Run 0 Options --------- Layout 1 ASCII 0 Keyboard 0 Movement Mouse Keybinds 0 Fullscreen 1 Font 32/SmallcapsGlow Map View 77x35 Zoom Use 0% Tactical HUD 0 Map Filters NONE Filters NONE Steam 1 RUN: 9620d694-50dd-4085-8315-a56c598a2206